fUST/lending_fUST_20250810
["ID","MTS","AMOUNT","RATE_DAILY","PERIOD"]
[378319443,1754823055077,-1885.24,0.00025953,2]
[378319444,1754823055086,-460.0,0.00025953,2]
[378319445,1754823055097,-665.01,0.00025953,2]
[378319446,1754823055106,-1503.61,0.00025953,2]
[378319447,1754823055115,-1701.36,0.00025953,2]
[378319448,1754823055125,-1158.71,0.00025953,2]
[378319449,1754823055135,-760.4,0.00025953,2]
[378319450,1754823055144,-751.04,0.00025953,2]
[378319451,1754823055154,-472.09,0.00025953,2]
[378319452,1754823055163,-1013.66,0.00025953,2]
[378319453,1754823055173,-460.0,0.00025954,2]
[378319454,1754823055182,-460.0,0.00025954,2]
[378319455,1754823055191,-970.74,0.00025954,2]
[378319456,1754823055201,-460.0,0.00025954,2]
[378319457,1754823055210,-484.95,0.00025954,2]
[378319458,1754823055220,-970.2,0.00025954,2]
[378319459,1754823055229,-1504.3,0.00025954,2]
[378319460,1754823055238,-1597.08,0.00025954,2]
[378319461,1754823055247,-498.19,0.00025955,2]
[378319462,1754823055258,-633.63,0.00025956,2]
[378319463,1754823055267,-1040.39,0.00025956,2]
[378319464,1754823055276,-4500.0,0.00025956,2]
[378319465,1754823055286,-1000.0,0.00026,26]
[378319466,1754823055296,-419.86000741,0.00026004,2]
[378319467,1754823055306,-500.0,0.00026028,2]
[378319468,1754823055315,-509.4,0.00026074,4]
[378319469,1754823055324,-991.12,0.00026129,2]
[378319470,1754823055333,-860.0,0.00026191,2]
[378319471,1754823055343,-902.52,0.00026205,2]
[378319472,1754823055352,-1682.52,0.00026205,2]
[378319473,1754823055361,-5449.43,0.00026205,2]
[378319474,1754823055370,-843.73,0.00026227,2]
[378319475,1754823055379,-1885.24,0.00026227,2]
[378319476,1754823055388,-460.0,0.00026227,2]
[378319477,1754823055397,-665.01,0.00026227,2]
[378319478,1754823055406,-1503.61,0.00026227,2]
[378319479,1754823055415,-1701.36,0.00026227,2]
[378319480,1754823055424,-1158.71,0.00026227,2]
[378319481,1754823055433,-760.4,0.00026227,2]
[378319482,1754823055442,-751.04,0.00026227,2]
[378319483,1754823055452,-472.09,0.00026227,2]
[378319484,1754823055461,-1013.66,0.00026227,2]
[378319485,1754823055470,-467.15069636,0.00026228,2]
[378319486,1754823055479,-460.0,0.00026228,2]
[378319487,1754823055488,-970.74,0.00026228,2]
[378319488,1754823055497,-553.01224261,0.00026228,2]
[378319489,1754823055506,-484.95,0.00026228,2]
[378319490,1754823055515,-970.2,0.00026228,2]
[378319491,1754823055524,-1504.3,0.00026228,2]
[378319492,1754823055533,-1597.08,0.00026228,2]
[378319493,1754823055542,-498.19,0.00026229,2]
[378319494,1754823055551,-633.63,0.0002623,2]
[378319495,1754823055560,-1040.39,0.0002623,2]
[378319496,1754823055569,-408.0,0.00026285,2]
[378319497,1754823055579,-408.0,0.00026285,2]
[378319498,1754823055588,-971.0,0.00026285,2]
[378319499,1754823055598,-2150.0,0.00026285,2]
[378319500,1754823055607,-636.0,0.00026285,2]
[378319501,1754823055617,-150.0,0.00026285,2]
[378319502,1754823055626,-500.0,0.00026302,2]
[378319503,1754823055636,-991.12,0.00026403,2]
[378319504,1754823055645,-200.0,0.00026463,15]
[378319505,1754823055655,-200.0,0.00026463,15]
[378319506,1754823055664,-200.0,0.00026463,15]
[378319507,1754823055674,-379.0,0.00026463,15]
[378319508,1754823055758,-902.52,0.00026479,2]
[378319509,1754823055767,-1682.52,0.00026479,2]
[378319510,1754823055776,-5449.43,0.00026479,2]
[378319511,1754823055786,-843.73,0.00026501,2]
[378319512,1754823055795,-1885.24,0.00026501,2]
[378319513,1754823055804,-468.00330923,0.00026501,2]
[378319514,1754823055813,-665.01,0.00026501,2]
[378319515,1754823055822,-1503.61,0.00026501,2]
[378319516,1754823055831,-1701.36,0.00026501,2]
[378319517,1754823055841,-1158.71,0.00026501,2]
[378319518,1754823055850,-760.4,0.00026501,2]
[378319519,1754823055859,-751.04,0.00026501,2]
[378319520,1754823055870,-472.09,0.00026501,2]
[378319521,1754823055879,-1013.66,0.00026501,2]
[378319522,1754823055888,-460.0,0.00026502,2]
[378319523,1754823055898,-970.74,0.00026502,2]
[378319524,1754823055907,-484.95,0.00026502,2]
[378319525,1754823055916,-970.2,0.00026502,2]
[378319526,1754823055926,-1504.3,0.00026502,2]
[378319527,1754823055935,-1597.08,0.00026502,2]
[378319528,1754823055944,-498.19,0.00026503,2]
[378319529,1754823055954,-633.63,0.00026504,2]
[378319530,1754823055964,-1040.39,0.00026504,2]
[378319531,1754823055973,-3891.5583111,0.00026504,2]
[378319532,1754823055982,-160.0,0.00026528,4]
[378319533,1754823055991,-500.0,0.00026576,2]
[378319534,1754823056001,-278.933417,0.00026676,2]
[378319535,1754823056011,-991.12,0.00026677,2]
[378319536,1754823056020,-150.0,0.00026687,2]
[378319537,1754823056029,-509.4,0.00026705,5]
[378319538,1754823056038,-960.0,0.00026739,2]
[378319539,1754823056048,-234.731482,0.00026748,2]
[378319540,1754823056057,-902.52,0.00026753,2]
[378319541,1754823056067,-1682.52,0.00026753,2]
[378319542,1754823056076,-5449.43,0.00026753,2]
[378319543,1754823056086,-1632.35,0.00026767,7]
[378319544,1754823056096,-843.73,0.00026775,2]
[378319545,1754823056106,-1885.24,0.00026775,2]
[378319546,1754823056115,-665.01,0.00026775,2]
[378319547,1754823056124,-1503.61,0.00026775,2]
[378319548,1754823056134,-1701.36,0.00026775,2]
[378319549,1754823056143,-1158.71,0.00026775,2]
[378319550,1754823056152,-760.4,0.00026775,2]
[378319551,1754823056162,-751.04,0.00026775,2]
[378319552,1754823056172,-472.09,0.00026775,2]
[378319553,1754823056181,-1013.66,0.00026775,2]
[378319554,1754823056190,-204.75,0.00026776,2]
[378319555,1754823056200,-970.74,0.00026776,2]
[378319556,1754823056209,-484.95,0.00026776,2]
[378319557,1754823056218,-970.2,0.00026776,2]
[378319558,1754823056228,-1504.3,0.00026776,2]
[378319559,1754823056237,-1597.08,0.00026776,2]
[378319560,1754823056247,-498.19,0.00026777,2]
[378319561,1754823056256,-633.63,0.00026778,2]
[378319562,1754823056266,-1040.39,0.00026778,2]
[378319563,1754823056275,-150.0,0.00026849,2]
[378319564,1754823056285,-500.0,0.0002685,2]
[378319565,1754823056294,-200.0,0.0002688,17]
[378319566,1754823056304,-6306.53855808,0.00026918,6]
[378319567,1754823056313,-823.0,0.00026934,2]
[378319568,1754823056322,-991.12,0.00026951,2]
[378319569,1754823056331,-1000.0,0.00027,27]
[378319570,1754823056341,-527.86640923,0.00027,3]
[378319571,1754823056350,-312.16666667,0.00027,3]
[378319572,1754823056358,-527.86640923,0.00027,3]
[378319573,1754823056368,-461.62346162,0.00027,3]
[378319574,1754823056378,-902.52,0.00027027,2]
[378319575,1754823056387,-1682.52,0.00027027,2]
[378319576,1754823056395,-5449.43,0.00027027,2]
[378319577,1754823056404,-843.73,0.00027049,2]
[378319578,1754823056415,-1885.24,0.00027049,2]
[378319579,1754823056424,-665.01,0.00027049,2]
[378319580,1754823056433,-1503.61,0.00027049,2]
[378319581,1754823056442,-1701.36,0.00027049,2]
[378319582,1754823056451,-1158.71,0.00027049,2]
[378319583,1754823056460,-760.4,0.00027049,2]
[378319584,1754823056470,-751.04,0.00027049,2]
[378319585,1754823056479,-472.09,0.00027049,2]
[378319586,1754823056489,-1013.66,0.00027049,2]
[378319587,1754823056498,-970.74,0.0002705,2]
[378319588,1754823056508,-484.95,0.0002705,2]
[378319589,1754823056518,-970.2,0.0002705,2]
[378319590,1754823056527,-1504.3,0.0002705,2]
[378319591,1754823056536,-1597.08,0.0002705,2]
[378319592,1754823056546,-498.19,0.00027051,2]
[378319593,1754823056555,-633.63,0.00027052,2]
[378319594,1754823056565,-1040.39,0.00027052,2]
[378319595,1754823056574,-996.3869265,0.00027123,3]
[378319596,1754823056583,-500.0,0.00027124,2]
[378319597,1754823056593,-991.21655777,0.00027225,2]
[378319598,1754823056602,-166.065596,0.0002726,10]
[378319599,1754823056612,-160.0,0.00027277,5]
[378319600,1754823056621,-1060.0,0.00027287,2]
[378319601,1754823056631,-902.72715128,0.00027301,2]
[378319602,1754823056640,-1682.61610805,0.00027301,2]
[378319603,1754823056650,-5449.54303946,0.00027301,2]
[378319604,1754823056659,-843.83887975,0.00027323,2]
[378319605,1754823056668,-1885.38,0.00027323,2]
[378319606,1754823056678,-665.2032771,0.00027323,2]
[378319607,1754823056688,-1503.80228846,0.00027323,2]
[378319608,1754823056697,-1701.41472252,0.00027323,2]
[378319609,1754823056707,-1158.74817882,0.00027323,2]
[378319610,1754823056716,-760.52322616,0.00027323,2]
[378319611,1754823056726,-751.12559887,0.00027323,2]
[378319612,1754823056736,-472.24943519,0.00027323,2]
[378319613,1754823056746,-1013.79,0.00027323,2]
[378319614,1754823056755,-970.94966844,0.00027324,2]
[378319615,1754823056765,-485.18592906,0.00027324,2]
[378319616,1754823056774,-970.26,0.00027324,2]
[378319617,1754823056784,-1504.34240002,0.00027324,2]
[378319618,1754823056794,-1597.09342185,0.00027324,2]
[378319619,1754823056803,-498.37834214,0.00027325,2]
[378319620,1754823056812,-151.0,0.00027326,7]
[378319621,1754823056822,-633.72519152,0.00027326,2]
[378319622,1754823056832,-1040.61244779,0.00027326,2]
[378319623,1754823056842,-509.4,0.00027337,5]
[378319624,1754823056852,-250.0,0.00027371,2]
[378319625,1754823056861,-460.0,0.00027397,2]
[378319626,1754823056873,-460.0,0.00027397,2]
[378319627,1754823056883,-460.0,0.00027397,2]
[378319628,1754823056893,-460.0,0.00027397,2]
[378319629,1754823056903,-467.01853698,0.00027397,2]
[378319630,1754823056915,-234.731482,0.00027397,5]
[378319631,1754823056926,-1000.0,0.00027397,5]
[378319632,1754823056935,-1000.0,0.00027397,5]
[378319633,1754823056945,-1000.0,0.00027397,5]
[378319634,1754823056955,-1000.0,0.00027397,5]
[378319635,1754823056964,-1000.0,0.00027397,5]
[378319636,1754823056974,-396.05514233,0.00027397,5]
[378319637,1754823056983,-5068.15,0.00027397,6]
[378319638,1754823056992,-160.76441177,0.00027397,2]
[378319639,1754823057001,-500.0,0.00027397,5]
[378319640,1754823057011,-500.0,0.00027397,5]
[378319641,1754823057020,-156.31974081,0.00027397,5]
[378319642,1754823057029,-500.0,0.00027398,2]
[378319643,1754823057039,-150.0,0.00027415,2]
[378319644,1754823057048,-5000.0,0.00027478,2]
[378319645,1754823057057,-500.0,0.00027672,2]
[378319646,1754823057066,-272.94114085,0.00027753,26]
[378319647,1754823057075,-1000.0,0.00027808,5]
[378319648,1754823057157,-1160.0,0.00027835,2]
[378319649,1754823057170,-234.731482,0.00027872,2]
[378319650,1754823057180,-500.0,0.00027946,2]
[378319651,1754823057189,-1632.35,0.00027959,7]
[378319652,1754823057198,-509.4,0.00027968,5]
[378319653,1754823057208,-1000.0,0.00028,28]
[378319654,1754823057217,-843.0869304,0.00028,3]
[378319655,1754823057227,-231.96268195,0.00028,3]
[378319656,1754823057235,-1597.29938414,0.00028001,2]
[378319657,1754823057245,-160.0,0.00028026,6]
[378319658,1754823057254,-234.731482,0.0002805,5]
[378319659,1754823057264,-382.53,0.000281,30]
[378319660,1754823057274,-677.55,0.000281,30]
[378319661,1754823057283,-382.55,0.000281,30]
[378319662,1754823057292,-188.36,0.000281,30]
[378319663,1754823057301,-188.38,0.000281,30]
[378319664,1754823057311,-443.88,0.000281,30]
[378319665,1754823057320,-202.98714517,0.00028158,7]
[378319666,1754823057330,-172.16558578,0.00028158,7]
[378319667,1754823057340,-160.0,0.00028158,7]
[378319668,1754823057350,-1759.0,0.00028158,7]
[378319669,1754823057359,-1759.0,0.00028158,7]
[378319670,1754823057369,-1759.0,0.00028158,7]
[378319671,1754823057378,-160.0,0.00028158,7]
[378319672,1754823057387,-1759.0,0.00028158,7]
[378319673,1754823057396,-160.0,0.00028158,7]
[378319674,1754823057406,-1759.0,0.00028158,7]
[378319675,1754823057415,-160.0,0.00028158,7]
[378319676,1754823057424,-1759.0,0.00028158,7]
[378319677,1754823057434,-1759.0,0.00028158,7]
[378319678,1754823057443,-160.0,0.00028158,7]
[378319679,1754823057452,-1759.0,0.00028158,7]
[378319680,1754823057462,-160.0,0.00028158,7]
[378319681,1754823057471,-1759.0,0.00028158,7]
[378319682,1754823057481,-160.0,0.00028158,7]
[378319683,1754823057491,-160.0,0.00028158,7]
[378319684,1754823057500,-1759.0,0.00028158,7]
[378319685,1754823057509,-170.1117116,0.00028158,7]
[378319686,1754823057518,-1759.0,0.00028158,7]
[378319687,1754823057528,-1759.0,0.00028158,7]
[378319688,1754823057537,-1222.33469865,0.00028158,7]
[378319689,1754823057546,-152.0,0.00028158,7]
[378319690,1754823057556,-152.0,0.00028158,7]
[378319691,1754823057565,-325.0,0.00028158,7]
[378319692,1754823057574,-325.0,0.00028158,7]
[378319693,1754823057584,-325.0,0.00028158,7]
[378319694,1754823057594,-325.0,0.00028158,7]
[378319695,1754823057603,-329.06662627,0.00028158,7]
[378319696,1754823057612,-152.0,0.00028158,7]
[378319697,1754823057622,-237.72006043,0.00028158,7]
[378319698,1754823057632,-325.0,0.00028158,7]
[378319699,1754823057641,-156.568908,0.000282,30]
[378319700,1754823057650,-166.065596,0.000282,30]
[378319701,1754823057659,-500.0,0.0002822,2]
[378319702,1754823057668,-1100.0,0.0002824,7]
[378319703,1754823057677,-1000.0,0.00028373,10]
[378319704,1754823057687,-935.0,0.00028373,10]
[378319705,1754823057696,-1260.0,0.00028383,2]
[378319706,1754823057705,-200.0,0.0002849,21]
[378319707,1754823057714,-500.0,0.00028494,2]
[378319708,1754823057723,-1000.0,0.0002851,10]
[378319709,1754823057733,-172.00826619,0.00028587,2]
[378319710,1754823057743,-509.4,0.000286,6]
[378319711,1754823057753,-1000.0,0.00028647,10]
[378319712,1754823057762,-175.37,0.00028664,15]
[378319713,1754823057772,-166.06,0.00028664,15]
[378319714,1754823057782,-2224.92,0.00028664,15]
[378319715,1754823057791,-6306.53855808,0.00028673,10]
[378319716,1754823057800,-234.731482,0.00028704,5]
[378319717,1754823057810,-175.37,0.00028764,15]
[378319718,1754823057819,-166.06,0.00028764,15]
[378319719,1754823057828,-2224.92,0.00028764,15]
[378319720,1754823057837,-500.0,0.00028768,2]
[378319721,1754823057847,-160.0,0.00028776,7]
[378319722,1754823057857,-1000.0,0.00028784,10]
[378319723,1754823057869,-175.38560617,0.00028864,15]
[378319724,1754823057883,-166.06,0.00028864,15]
[378319725,1754823057892,-2224.92,0.00028864,15]
[378319726,1754823057901,-1000.0,0.00028879,10]
[378319727,1754823057911,-678.3950871,0.000289,2]
[378319728,1754823057921,-1000.0,0.00028921,10]
[378319729,1754823057931,-1360.0,0.00028931,2]
[378319730,1754823057941,-166.08955556,0.00028964,15]
[378319731,1754823057950,-2224.92,0.00028964,15]
[378319732,1754823057960,-234.731482,0.00028996,2]
[378319733,1754823057969,-1000.0,0.00029,29]
[378319734,1754823057978,-234.731482,0.00029,10]
[378319735,1754823057987,-216.64838636,0.00029,10]
[378319736,1754823057996,-216.64838636,0.00029,7]
[378319737,1754823058006,-160.0,0.00029,10]
[378319738,1754823058015,-843.0869304,0.00029,10]
[378319739,1754823058024,-160.0,0.00029,10]
[378319740,1754823058033,-160.0,0.00029,10]
[378319741,1754823058042,-312.16666667,0.00029,10]
[378319742,1754823058051,-160.0,0.00029,10]
[378319743,1754823058061,-527.86640923,0.00029,10]
[378319744,1754823058070,-2930.80916963,0.00029,10]
[378319745,1754823058088,-9737.76742706,0.00029,10]
[378319746,1754823058098,-231.96268195,0.00029,10]
[378319747,1754823058108,-461.62346162,0.00029,10]
[378319748,1754823058118,-800.0,0.00029003,2]
[378319749,1754823058127,-234.731482,0.00029018,10]
[378319750,1754823058137,-234.731482,0.00029035,10]
[378319751,1754823058146,-418.0,0.00029042,2]
[378319752,1754823058156,-200.0,0.00029045,15]
[378319753,1754823058167,-200.0,0.00029045,15]
[378319754,1754823058176,-200.0,0.00029045,15]
[378319755,1754823058185,-200.0,0.00029045,15]
[378319756,1754823058194,-200.0,0.00029045,15]
[378319757,1754823058203,-371.0,0.00029045,15]
[378319758,1754823058213,-234.731482,0.00029052,10]
[378319759,1754823058222,-1000.0,0.00029058,10]
[378319760,1754823058231,-1100.0,0.00029062,7]
[378319761,1754823058241,-2224.92,0.00029064,15]
[378319762,1754823058250,-234.731482,0.0002907,10]
[378319763,1754823058259,-180.010373,0.00029084,2]
[378319764,1754823058270,-1632.35,0.00029151,30]
[378319765,1754823058280,-2224.92,0.00029164,15]
[378319766,1754823058289,-1000.0,0.00029195,10]
[378319767,1754823058299,-509.4,0.00029231,6]
[378319768,1754823058308,-2224.92,0.00029264,15]
[378319769,1754823058318,-408.0,0.00029285,2]
[378319770,1754823058327,-408.0,0.00029285,2]
[378319771,1754823058336,-971.0,0.00029285,2]
[378319772,1754823058346,-2150.0,0.00029285,2]
[378319773,1754823058356,-636.0,0.00029285,2]
[378319774,1754823058365,-1152.0,0.00029301,2]
[378319775,1754823058374,-600.0,0.00029317,2]
[378319776,1754823058384,-151.0,0.00029318,7]
[378319777,1754823058461,-151.06715486,0.00029323,30]
[378319778,1754823058470,-1000.0,0.00029332,10]
[378319779,1754823058478,-234.731482,0.00029357,5]
[378319780,1754823058487,-2224.92,0.00029364,15]
[378319781,1754823058495,-2794.07164417,0.000294,7]
[378319782,1754823058506,-2224.92,0.00029464,15]
[378319783,1754823058516,-1000.0,0.00029468,10]
[378319784,1754823058526,-1460.0,0.00029479,2]
[378319785,1754823058535,-4339.44449723,0.000295,2]
[378319786,1754823058547,-1630.92101454,0.000295,2]
[378319787,1754823058559,-1300.66605633,0.000295,2]
[378319788,1754823058895,-460.0,0.00020923,2]
[378319789,1754823058905,-153.33146058,0.00020979,2]
[378319790,1754823058918,-346.66853942,0.00020979,2]
[378319791,1754823058927,-365.57928728,0.00020999,2]
[378319792,1754823059080,-380.45492954,0.00020923,2]
[378319793,1754823118474,1000.0,0.00031576,30]
[378319794,1754823122649,1000.0,0.00031576,30]
[378319795,1754823125785,1000.0,0.00031576,30]
[378319796,1754823128304,1000.0,0.00031576,30]
[378319797,1754823138998,1000.0,0.00031576,30]
[378319798,1754823151047,550.25,0.00031576,30]
[378319799,1754823158627,2898.84439934,0.000199,2]
[378319800,1754823158652,2208.05117838,0.000199,2]
[378319802,1754823190153,1000.0,0.00031563,120]
[378319803,1754823240729,1000.0,0.00019931,2]
[378319805,1754823316090,16791.94882162,0.00019905,2]
[378319806,1754823316113,8108.05117838,0.00019905,2]
[378319808,1754823349481,311.676188,0.00013699,2]
[378319809,1754823349680,311.676188,0.00020187,2]
[378319810,1754823355863,5146.13426105,0.000199,2]
[378319812,1754823393090,3037.7692611,0.00020046,2]
[378319813,1754823434831,3084.69292347,0.00020501,2]
[378319814,1754823434855,1915.30707653,0.00020501,2]
[378319815,1754823435163,836.38,0.00030137,120]
[378319816,1754823439268,1200.0,0.00030137,120]
[378319817,1754823450383,5000.0,0.00020501,2]
[378319818,1754823462430,1146.0,0.00030137,120]
[378319819,1754823469033,5000.0,0.00020501,2]
[378319820,1754823484464,5000.0,0.00020501,2]
[378319821,1754823491656,1000.0,0.00020501,2]
[378319822,1754823499947,2084.69292347,0.00020501,2]
[378319823,1754823499970,1532.85344842,0.00020501,2]
[378319824,1754823505610,444.445,0.00030137,120]
[378319825,1754823556295,5303.58043555,0.000199,2]
[378319827,1754823634528,718.34,0.0003013,120]
[378319829,1754823664373,543.13097117,0.00020501,2]
[378319830,1754823764237,5213.35375308,0.000199,2]
[378319834,1754823860558,203.125144,0.00027397,120]
[378319837,1754823958548,5122.46911847,0.000199,2]
[378319838,1754823966894,814.69645675,0.00020501,2]
[378319839,1754823968094,407.34822838,0.00020501,2]
[378319840,1754823969351,203.67411419,0.00020501,2]
[378319841,1754824005143,-160.15683092,0.00020687,2]
[378319842,1754824005167,-252.33626998,0.00020687,2]
[378319843,1754824005193,-2032.62825341,0.00020787,2]
[378319844,1754824005214,-12.98861515,0.00020823,2]
[378319853,1754824062336,171.12727,0.00019886,2]
[378319854,1754824091185,687.76620399,0.000189,2]
[378319855,1754824091209,321.17694913,0.000189,2]
[378319857,1754824138186,249.419769,0.00019886,2]
[378319858,1754824165527,5168.62258533,0.000199,2]
[378319890,1754824232811,-289.16566365,0.00020823,2]
[378319891,1754824232821,-320.55,0.00020878,10]
[378319909,1754824233001,-1200.0,0.00020884,2]
[378319911,1754824233012,-294.0,0.00020885,2]
[378319913,1754824233022,-300.0,0.00020885,2]
[378319914,1754824233031,-460.0,0.00020886,2]
[378319915,1754824233041,-460.0,0.00020886,2]
[378319916,1754824233050,-460.0,0.00020886,2]
[378319917,1754824233061,-460.0,0.00020886,2]
[378319918,1754824233071,-460.0,0.00020886,2]
[378319919,1754824233081,-433.22478134,0.00020886,2]
[378319920,1754824236737,-151.11938259,0.00020786,2]
[378319921,1754824236747,-26.77521866,0.00020886,2]
[378319922,1754824236756,-460.0,0.00020886,2]
[378319923,1754824236766,-460.0,0.00020886,2]
[378319924,1754824236775,-460.0,0.00020886,2]
[378319925,1754824236785,-484.86,0.00020886,2]
[378319926,1754824236794,-460.0,0.00020886,2]
[378319927,1754824236803,-460.0,0.00020886,2]
[378319928,1754824236812,-460.0,0.00020886,2]
[378319929,1754824236821,-460.0,0.00020886,2]
[378319930,1754824236831,-460.0,0.00020886,2]
[378319931,1754824236840,-460.0,0.00020886,2]
[378319932,1754824236849,-460.0,0.00020886,2]
[378319933,1754824236872,-460.0,0.00020886,2]
[378319936,1754824236881,-460.0,0.00020886,2]
[378319939,1754824236891,-527.59,0.00020886,2]
[378319942,1754824236900,-460.0,0.00020886,2]
[378319945,1754824236909,-460.0,0.00020886,2]
[378319947,1754824236918,-705.43574187,0.00020886,2]
[378319949,1754824236928,-206.73736632,0.00020887,2]
[378319951,1754824236937,-500.0,0.00020887,2]
[378319952,1754824236946,-500.0,0.00020887,2]
[378319953,1754824236955,-153.94868018,0.00020887,2]
[378319954,1754824236963,-394.10919676,0.00020887,2]
[378319955,1754824236972,-345.54895,0.00020887,2]
[378319956,1754824236981,-423.42978065,0.00020887,2]
[378319957,1754824236990,-323.43127404,0.00020887,2]
[378319958,1754824236999,-500.0,0.00020887,2]
[378319959,1754824237008,-500.0,0.00020887,2]
[378319960,1754824237017,-500.0,0.00020887,2]
[378319961,1754824237030,-500.0,0.00020887,2]
[378319962,1754824237039,-500.0,0.00020887,2]
[378319963,1754824237048,-500.0,0.00020887,2]
[378319964,1754824237058,-500.0,0.00020887,2]
[378319965,1754824237067,-500.0,0.00020887,2]
[378319966,1754824237076,-500.0,0.00020887,2]
[378319967,1754824237086,-500.0,0.00020887,2]
[378319968,1754824237096,-500.0,0.00020887,2]
[378319969,1754824237105,-500.0,0.00020887,2]
[378319970,1754824237115,-500.0,0.00020887,2]
[378319971,1754824237124,-500.0,0.00020887,2]
[378319972,1754824237133,-500.0,0.00020887,2]
[378319973,1754824237143,-500.0,0.00020887,2]
[378319974,1754824237153,-500.0,0.00020887,2]
[378319975,1754824237163,-500.0,0.00020887,2]
[378319976,1754824237172,-500.0,0.00020887,2]
[378319977,1754824237182,-500.0,0.00020887,2]
[378319978,1754824237192,-500.0,0.00020887,2]
[378319979,1754824237203,-500.0,0.00020887,2]
[378319980,1754824237212,-500.0,0.00020887,2]
[378319981,1754824237223,-460.0,0.00020887,2]
[378319982,1754824237233,-460.0,0.00020887,2]
[378319983,1754824237242,-460.0,0.00020887,2]
[378319984,1754824237251,-460.0,0.00020887,2]
[378319985,1754824237261,-539.54507046,0.00020887,2]
[378319986,1754824237270,-460.0,0.00020887,2]
[378319987,1754824237279,-460.0,0.00020887,2]
[378319988,1754824237289,-460.0,0.00020887,2]
[378319989,1754824237298,-460.0,0.00020887,2]
[378319990,1754824237307,-460.0,0.00020887,2]
[378319991,1754824237317,-460.0,0.00020887,2]
[378319992,1754824237326,-460.0,0.00020887,2]
[378319993,1754824237335,-460.0,0.00020887,2]
[378319994,1754824237344,-460.0,0.00020887,2]
[378319995,1754824237354,-460.0,0.00020887,2]
[378319996,1754824237363,-460.0,0.00020887,2]
[378319997,1754824237373,-460.0,0.00020887,2]
[378319998,1754824237382,-460.0,0.00020887,2]
[378319999,1754824237392,-460.0,0.00020887,2]
[378320000,1754824237402,-460.0,0.00020887,2]
[378320001,1754824237411,-460.0,0.00020887,2]
[378320002,1754824237420,-460.0,0.00020887,2]
[378320003,1754824237430,-460.0,0.00020887,2]
[378320004,1754824237439,-460.0,0.00020887,2]
[378320005,1754824237448,-460.0,0.00020887,2]
[378320006,1754824237459,-460.0,0.00020887,2]
[378320007,1754824237470,-460.0,0.00020887,2]
[378320008,1754824237480,-460.0,0.00020887,2]
[378320009,1754824237490,-460.0,0.00020887,2]
[378320010,1754824237500,-460.0,0.00020887,2]
[378320011,1754824237511,-407.36811487,0.00020887,2]
[378320012,1754824237521,-460.0,0.00020887,2]
[378320013,1754824237531,-460.0,0.00020887,2]
[378320014,1754824237543,-460.0,0.00020887,2]
[378320015,1754824237553,-460.0,0.00020887,2]
[378320016,1754824237562,-460.0,0.00020887,2]
[378320017,1754824237572,-460.0,0.00020887,2]
[378320018,1754824237584,-460.0,0.00020887,2]
[378320019,1754824237594,-460.0,0.00020887,2]
[378320020,1754824237604,-488.19,0.00020887,2]
[378320021,1754824237613,-500.0,0.00020887,2]
[378320022,1754824237623,-257388.9916664,0.00020888,2]
[378320024,1754824238486,-460.0,0.00020886,2]